bitfinex-derivatives/quotes_ETHF0:USTF0_20250123
["timestamp","ask_amount","ask_price","bid_price","bid_amount"]
[1737602975239,1.76037628,3242.0,3241.9,4.699]
[1737602975435,1.76037628,3242.0,3241.9,4.1842]
[1737602979745,1.76037628,3242.0,3241.9,4.80153]
[1737602980045,1.76037628,3242.0,3241.9,0.9764]
[1737602980247,1.76037628,3242.0,3241.9,1.59373]
[1737602982045,1.14306628,3242.0,3241.9,1.59373]
[1737602985251,1.76037628,3242.0,3241.9,1.59373]
[1737602986047,1.14306628,3242.0,3241.9,1.59373]
[1737602986248,1.14306628,3242.0,3241.9,4.80153]
[1737602988552,1.76037628,3242.0,3241.9,4.80153]
[1737602988852,1.14306628,3242.0,3241.9,4.80153]
[1737602989052,1.76037628,3242.0,3241.9,4.1842]
[1737602989446,1.76037628,3242.0,3241.9,4.80153]
[1737602994054,0.61726,3242.3,3242.1,0.61727]
[1737602994252,0.61725,3242.3,3242.2,1.13586]
[1737602996854,1.14306628,3242.4,3242.3,0.61725]
[1737602997251,1.14306628,3242.4,3242.3,1.09735]
[1737602997452,1.14306628,3242.6,3242.3,0.4801]
[1737602997655,1.76026628,3242.6,3242.5,0.61721]
[1737602998057,1.14306628,3242.6,3242.5,0.61721]
[1737602998954,1.76026628,3242.6,3242.5,0.61721]
[1737603001359,1.14306628,3242.6,3242.5,0.61721]
[1737603002260,1.14306628,3242.8,3242.4,0.518]
[1737603002462,1.14306628,3242.8,3242.7,0.61718]
[1737603002660,0.61718,3242.7,3242.6,0.61719]
[1737603002962,0.61718,3242.7,3242.5,0.6172]
[1737603003153,1.14306628,3242.6,3242.5,0.61721]
[1737603004861,1.76026628,3242.6,3242.5,0.61721]
[1737603005069,0.61719,3242.7,3242.5,0.61721]
[1737603005254,1.14306628,3242.6,3242.4,0.518]
[1737603005550,0.61729,3242.1,3242.0,0.61731]
[1737603005749,1.76035628,3242.1,3242.0,0.61731]
[1737603006057,0.61731,3242.0,3241.9,3.82512]
[1737603006962,1.76036628,3242.1,3242.0,0.61731]
[1737603007263,0.6173,3242.1,3242.0,0.61731]
[1737603007964,0.61727,3242.2,3242.0,0.61729]
[1737603008167,0.61731,3242.0,3241.9,4.96818628]
[1737603008463,0.6173,3242.1,3242.0,0.6173]
[1737603008654,0.61731,3242.0,3241.8,0.9665]
[1737603008857,1.76039628,3241.9,3241.8,0.9665]
[1737603009259,1.14306628,3241.9,3241.6,41.3117]
[1737603009454,0.61739,3241.6,3241.5,1e-08]
[1737603009860,1.10249,3241.6,3241.5,1e-08]
[1737603010060,1.14306628,3241.9,3241.5,1.14306629]
[1737603010262,1.14306628,3241.9,3241.6,0.4845]
[1737603010471,0.61736,3241.8,3241.7,0.4845]
[1737603010765,0.61736,3241.8,3241.7,1.10187]
[1737603010964,0.61736,3241.8,3241.7,0.4845]
[1737603011163,1.10246,3241.8,3241.7,0.4845]
[1737603012159,0.61739,3241.6,3241.5,1e-08]
[1737603012358,1.76045628,3241.6,3241.5,1e-08]
[1737603014863,4.35086628,3242.0,3241.5,1.14306629]
[1737603015071,0.61734,3241.9,3241.7,0.61735]
[1737603015268,0.61734,3241.9,3241.6,3.2078]
[1737603015269,1.14306628,3242.0,3241.9,0.61733]
[1737603015470,1.76037628,3242.0,3241.6,3.2078]
[1737603015670,0.61733,3241.9,3241.8,0.61735]
[1737603015874,0.61735,3241.8,3241.7,0.61736]
[1737603016071,0.61737,3241.7,3241.6,3.2078]
[1737603016570,1.13117,3241.7,3241.6,3.2078]
[1737603016965,1.13117,3241.7,3241.5,1e-08]
[1737603017171,1.76045628,3241.6,3241.5,1e-08]
[1737603017574,1.76045628,3241.6,3241.5,0.61741001]
[1737603019873,1.14306628,3241.6,3241.5,0.61741001]
[1737603020073,1.76045628,3241.6,3241.5,0.61741001]
[1737603020270,1.14306628,3241.6,3241.5,0.61741001]
[1737603022270,1.14306628,3241.6,3241.5,3.82521001]
[1737603023078,1.14306628,3241.6,3241.5,0.61741001]
[1737603023675,1.76045628,3241.6,3241.5,3.82521001]
[1737603023876,1.14306628,3241.6,3241.5,3.82521001]
[1737603025072,0.61736,3241.8,3241.5,4.35086629]
[1737603025275,1.76042628,3241.8,3241.7,0.61737]
[1737603025675,0.61738,3241.7,3241.6,0.61738]
[1737603026581,0.61739,3241.6,3241.5,3.82519001]
[1737603026878,1.14306628,3241.6,3241.5,3.82519001]
[1737603028980,1.76045628,3241.6,3241.5,3.82519001]
[1737603031284,1.14306628,3241.6,3241.5,3.82519001]
[1737603031475,0.61738,3241.7,3241.6,0.61739]
[1737603033683,0.61739,3241.6,3241.5,1e-08]
[1737603033988,2.27745628,3241.6,3241.5,1e-08]
[1737603035084,2.27745628,3241.6,3241.5,0.61741001]
[1737603035387,1.76045628,3241.6,3241.5,0.61741001]
[1737603035589,1.14306628,3241.6,3241.5,0.61741001]
[1737603035784,1.76045628,3241.6,3241.5,1e-08]
[1737603036383,1.76045628,3241.6,3241.5,0.61741001]
[1737603037091,1.76045628,3241.6,3241.5,1e-08]
[1737603037388,1.76045628,3241.6,3241.5,0.61741001]
[1737603039990,1.14306628,3241.6,3241.5,0.61741001]
[1737603040291,1.76045628,3241.6,3241.5,0.61741001]
[1737603040995,1.76045628,3241.6,3241.5,1e-08]
[1737603041385,1.76045628,3241.6,3241.5,0.61741001]
[1737603041585,1.76045628,3241.6,3241.5,1e-08]
[1737603055911,4.96825628,3241.6,3241.5,1e-08]
[1737603060927,6.11132256,3241.6,3241.5,1e-08]
[1737603061420,4.96825628,3241.6,3241.5,1e-08]
[1737603064127,1.76045628,3241.6,3241.5,1e-08]
[1737603064721,2.90352256,3241.6,3241.5,1e-08]
[1737603065024,4.96825628,3241.6,3241.5,1e-08]
[1737603065622,6.24207543,3241.6,3241.5,1e-08]
[1737603067024,11.47181444,3241.6,3241.5,1e-08]
[1737603067929,6.47181444,3241.6,3241.5,1e-08]
[1737603069321,11.47181444,3241.6,3241.5,1e-08]
[1737603069624,6.47181444,3241.6,3241.5,1e-08]
[1737603078229,5.85442444,3241.6,3241.2,0.9743]
[1737603078432,0.61746,3241.2,3241.1,0.4787]
[1737603081329,3.82526,3241.2,3241.1,0.4787]
[1737603083039,4.06116914,3241.2,3241.1,0.4787]
[1737603083636,0.85336914,3241.2,3241.1,0.4787]
[1737603083839,4.06116914,3241.2,3241.1,0.4787]
[1737603084841,3.82526,3241.2,3241.1,0.4787]
[1737603085739,6.11385956,3241.2,3241.1,0.4787]
[1737603086842,4.96955978,3241.2,3241.1,0.4787]
[1737603087038,2.90605956,3241.2,3241.1,0.4787]
[1737603087842,1.76175978,3241.2,3241.1,0.4787]
[1737603088044,2.90605956,3241.2,3241.1,0.4787]
[1737603090143,1.76175978,3241.2,3241.1,0.4787]
[1737603090351,2.90605956,3241.2,3241.1,0.4787]
[1737603090648,1.14429978,3241.2,3241.1,0.4787]
[1737603090947,11.95740756,3241.4,3241.1,0.4787]
[1737603091140,11.95740756,3241.4,3241.1,1.09618]
[1737603091141,1.14429978,3241.2,3241.1,1.09618]
[1737603091342,11.95740756,3241.4,3241.3,0.61745]
[1737603091544,13.10170734,3241.4,3241.3,0.61745]
[1737603091841,13.10170734,3241.4,3241.3,41.41745]
[1737603092251,13.10170734,3241.4,3241.3,40.8]
[1737603092553,13.10170734,3241.4,3241.3,41.41745]
[1737603093652,13.10170734,3241.4,3241.3,40.8]
[1737603093653,14.37361508,3241.4,3241.3,40.8]
[1737603094150,14.37361508,3241.4,3241.3,41.41745]
[1737603094351,14.37361508,3241.4,3241.3,40.8]
[1737603094945,2.41620752,3241.4,3241.3,41.2191]
[1737603095250,3.03363752,3241.4,3241.3,41.2191]
[1737603095848,3.03363752,3241.4,3241.3,0.4191]
[1737603096054,1.54362,3241.3,3240.8,0.00462648]
[1737603096348,0.6176,3240.5,3240.4,0.4774]
[1737603096555,3.03380752,3240.5,3240.4,0.4774]
[1737603103156,3.03380752,3240.5,3240.4,41.2774]
[1737603107157,0.6176,3240.5,3240.4,41.2774]
[1737603107659,3.2078,3240.7,3240.4,41.2774]
[1737603107860,0.6176,3240.5,3240.4,41.2774]
[1737603108055,3.2078,3240.7,3240.4,41.2774]
[1737603108458,0.6176,3240.5,3240.4,41.2774]
[1737603108861,3.03380752,3240.5,3240.4,41.2774]
[1737603109656,2.41620752,3240.5,3240.1,0.00462648]
[1737603109865,3.03386752,3240.2,3240.1,0.00462648]
[1737603119169,2.41620752,3240.2,3239.2,3.2078]
[1737603119376,2.41620752,3239.3,3239.2,3.82565]
[1737603120075,2.41620752,3239.6,3239.5,0.61779]
[1737603120775,3.03397752,3239.6,3239.5,0.61779]
[1737603121073,2.41620752,3239.6,3239.5,0.61779]
[1737603121275,3.03397752,3239.6,3239.5,0.61779]
[1737603121476,2.41620752,3239.6,3239.5,0.61779]
[1737603122782,2.90190752,3240.2,3239.5,6.54448]
[1737603122971,3.51956752,3240.2,3240.1,0.61767]
[1737603123281,3.51956752,3240.2,3240.1,41.41767]
[1737603123577,2.41620752,3240.2,3240.1,41.41767]
[1737603123778,0.5051,3240.4,3240.3,0.61764]
[1737603124077,2.41620752,3240.5,3240.4,0.61762]
[1737603125265,0.4828,3240.6,3240.5,0.6176]
[1737603125472,1.0142,3240.7,3240.2,1.4683]
[1737603125673,2.41620752,3240.4,3240.3,0.61763]
[1737603128478,3.03382752,3240.4,3240.3,0.61763]
[1737603128979,2.41620752,3240.4,3240.2,0.9452]
[1737603129183,2.41620752,3240.4,3240.1,3.2078]
[1737603129184,0.61766,3240.2,3240.1,3.2078]
[1737603131682,0.61765,3240.3,3240.1,3.2078]
[1737603131878,2.41620752,3240.4,3240.3,0.61764]
[1737603132876,7.11570752,3240.7,3240.2,1.0273]
[1737603133175,7.11570752,3240.7,3240.5,0.61759]
[1737603133376,3.90790752,3240.7,3240.6,3.82538]
[1737603134380,2.90950752,3240.7,3240.6,3.82538]
[1737603135887,0.4933,3240.7,3240.6,3.82538]
[1737603136482,0.00462648,3240.8,3240.7,0.61756]
[1737603136679,0.00462648,3240.8,3240.7,1.03726]
[1737603137178,0.00462648,3240.8,3240.7,41.83726]
[1737603140588,0.00462648,3240.8,3240.7,42.32246]
[1737603142779,0.5175,3241.2,3240.7,46.7049]
[1737603142986,0.5175,3241.2,3241.1,0.61749]
[1737603148888,0.00462648,3241.5,3241.0,3.2078]
[1737603149093,11.95740756,3242.1,3241.4,3.2078]
[1737603149292,1.0072,3242.0,3241.8,3.2078]
[1737603149494,3.03353752,3241.9,3241.8,3.2078]
[1737603149687,3.55883752,3241.9,3241.8,44.0078]
[1737603150089,3.55883752,3241.9,3241.8,44.62515]
[1737603150289,3.55883752,3241.9,3241.8,44.0078]
[1737603150490,3.55883752,3241.9,3241.8,40.8]
[1737603150793,0.61741,3241.5,3241.4,3.2078]
[1737603150993,3.03361752,3241.5,3241.4,3.2078]
[1737603151691,0.61741,3241.5,3241.4,3.2078]
[1737603152093,3.03361752,3241.5,3241.4,3.2078]
[1737603152993,2.41620752,3241.5,3241.0,3.2078]
[1737603153194,0.5253,3241.9,3241.0,3.2078]
[1737603153195,0.61749,3241.1,3241.0,3.2078]
[1737603153397,0.61752,3240.9,3240.8,0.00462648]
[1737603153593,3.03372752,3240.9,3240.8,0.00462648]
[1737603154196,0.61766,3240.2,3239.9,3.2078]
[1737603154391,2.41620752,3240.3,3239.9,3.2078]
[1737603154600,3.2078,3240.8,3240.0,40.8]
[1737603154798,0.61755,3240.8,3240.4,0.6176]
[1737603154991,0.61755,3240.8,3240.0,41.7362]
[1737603155298,0.61757,3240.7,3240.3,0.61763]
[1737603155601,0.61754,3240.8,3240.3,0.61763]
[1737603155796,0.61757,3240.7,3240.4,0.61762]
[1737603155991,2.41620752,3240.9,3240.5,0.61759]
[1737603156197,0.61755,3240.8,3240.5,0.61759]
[1737603156802,0.61756,3240.7,3240.3,0.61763]
[1737603157001,0.5153,3240.8,3240.1,0.00462648]
[1737603157202,1.13285,3240.8,3240.2,0.61766]
[1737603157400,0.5153,3240.8,3240.3,3.2078]
[1737603157699,5.628634,3241.2,3240.3,3.2078]
[1737603157903,1.13279,3241.1,3240.8,0.61753]
[1737603159197,1.13279,3241.1,3240.8,0.61754]
[1737603159401,0.61751,3241.0,3240.8,0.61754]
[1737603160203,0.61751,3241.0,3240.9,40.8]
[1737603163011,1.1328,3241.1,3240.9,40.8]
[1737603164011,0.5153,3241.1,3240.9,40.8]
[1737603164200,0.5153,3241.1,3241.0,0.6175]
[1737603165200,0.5153,3241.1,3240.9,41.41752]
[1737603165602,0.5153,3241.1,3240.9,40.8]
[1737603165804,0.5153,3241.1,3241.0,0.6175]
[1737603166497,1.13279,3241.1,3240.9,41.41751]
[1737603166700,2.420834,3241.2,3240.9,40.8]
[1737603166900,2.420834,3241.2,3241.1,0.61749]
[1737603167305,0.00462648,3241.2,3241.1,0.61749]
[1737603169303,0.00462648,3241.2,3241.1,3.82529]
[1737603176910,5.62400752,3242.4,3241.1,10.62400752]
[1737603177119,6.11590752,3242.4,3241.7,3.2078]
[1737603177413,0.61728,3242.2,3242.1,0.61728]
[1737603177603,0.61728,3242.2,3242.1,41.41728]
[1737603177807,0.61728,3242.2,3242.1,40.8]
[1737603178020,0.61728,3242.2,3242.1,41.4173]
[1737603179317,0.61728,3242.2,3242.1,40.8]
[1737603179519,0.61728,3242.2,3242.1,41.4173]
[1737603180219,6.11590752,3242.4,3242.1,41.4173]
[1737603180522,6.11590752,3242.4,3242.2,0.61728]
[1737603180719,6.11590752,3242.4,3242.1,40.8]
[1737603181017,0.61728,3242.2,3242.1,40.8]
[1737603181217,6.11590752,3242.4,3242.1,40.8]
[1737603181422,0.61726,3242.3,3242.1,40.8]
[1737603182019,0.61726,3242.3,3242.1,41.41729]
[1737603182320,0.61726,3242.3,3242.1,0.61729]
[1737603182818,6.11590752,3242.4,3242.2,0.61726]
[1737603182819,3.52535752,3242.4,3242.2,0.61726]
[1737603183125,2.90810752,3242.4,3242.2,0.61728]
[1737603183421,3.52534752,3242.4,3242.2,0.61728]
[1737603183614,2.90810752,3242.4,3242.1,40.8]
[1737603183924,3.40680752,3242.7,3242.1,44.0078]
[1737603184121,0.4955,3242.6,3242.5,0.61722]
[1737603186221,0.4955,3242.6,3242.1,44.0078]
[1737603186428,0.4955,3242.6,3242.4,0.61723]
[1737603186623,0.4955,3242.6,3242.5,0.61722]
[1737603187125,2.41620752,3242.7,3242.6,0.6172]
[1737603187928,2.41620752,3242.7,3242.1,44.0078]
[1737603188229,3.03339752,3242.7,3242.1,44.0078]
[1737603188419,0.61721,3242.6,3242.5,0.61722]
[1737603188822,0.61721,3242.6,3242.4,0.61722]
[1737603189024,0.61722,3242.5,3242.4,0.61722]
[1737603189321,2.41620752,3242.7,3242.1,44.0078]
[1737603189322,2.41620752,3242.7,3242.1,3.2078]
[1737603189524,0.61734,3241.9,3241.8,0.00462648]
[1737603189721,3.03354752,3241.9,3241.8,0.00462648]
[1737603191123,0.61742,3241.4,3241.0,40.8]
[1737603191325,0.61748,3241.1,3241.0,40.8]
[1737603194331,0.5001,3241.3,3241.0,40.8]
[1737603194523,0.5001,3241.3,3241.2,0.61746]
[1737603194729,0.00462648,3241.4,3241.2,0.61746]
[1737603195329,0.62205648,3241.4,3241.0,44.0078]
[1737603195530,0.00462648,3241.4,3241.0,44.0078]
[1737603195926,0.61748,3241.1,3241.0,44.0078]
[1737603196131,0.61748,3241.1,3241.0,40.8]
[1737603196625,0.00462648,3241.4,3241.3,0.61744]
[1737603196831,0.61745,3241.3,3241.0,44.62529]
[1737603197330,2.41620752,3241.2,3241.0,44.0078]
[1737603197528,3.03367752,3241.2,3241.0,44.62529]
[1737603197832,0.61747,3241.2,3241.0,44.62529]
[1737603198130,0.61745,3241.3,3241.1,0.61748]
[1737603198328,0.62205648,3241.4,3241.2,0.61746]
[1737603199034,0.00462648,3241.4,3241.0,44.0078]
[1737603199330,0.61744,3241.3,3241.1,0.61747]
[1737603199532,0.61744,3241.3,3241.1,1.12047]
[1737603200129,0.00462648,3241.4,3241.1,0.503]
[1737603200329,2.41620752,3241.2,3241.0,44.0078]
[1737603200541,1.59288,3241.1,3241.0,44.0078]
[1737603200734,2.07498,3241.1,3241.0,44.0078]
[1737603204939,1.58958,3241.1,3241.0,44.0078]
[1737603205235,1.58958,3241.1,3241.0,40.8]
[1737603206741,0.61754,3240.8,3240.7,0.00462648]
[1737603206926,3.03374752,3240.8,3240.7,0.00462648]
[1737603210938,3.03374752,3240.8,3240.7,0.62218648]
[1737603211137,2.41620752,3240.8,3240.7,0.62218648]
[1737603212042,2.41620752,3240.8,3240.7,41.42218648]
[1737603212340,6.59610752,3241.1,3240.7,40.80462648]
[1737603212538,0.61751,3241.0,3240.9,0.6175]
[1737603214336,3.38830752,3241.1,3240.7,40.80462648]
[1737603214540,4.00578752,3241.1,3241.0,0.6175]
[1737603214941,2.41620752,3241.1,3241.0,0.6175]
[1737603215243,2.420834,3241.4,3241.3,0.61744]
[1737603225943,2.420834,3241.4,3241.2,0.61746]
[1737603226150,0.61745,3241.3,3241.2,0.61746]
[1737603226847,0.61746,3241.2,3241.1,4.33757]
[1737603227045,0.61746,3241.2,3241.1,3.2078]
[1737603227439,0.5136,3241.3,3240.9,0.5091]
[1737603227737,3.03370752,3241.0,3240.9,1.12662]
[1737603227947,3.03370752,3241.0,3240.9,0.5091]
[1737603228147,3.03370752,3241.0,3240.9,1.12662]
[1737603229544,2.41620752,3241.0,3240.9,1.12662]
[1737603229750,0.61747,3241.2,3241.1,0.61747]
[1737603229945,0.61749,3241.1,3241.0,0.61749]
[1737603231650,0.61747,3241.2,3241.0,0.61749]
[1737603231853,0.61747,3241.2,3241.1,0.61748]
[1737603232044,3.03365752,3241.3,3240.9,0.5091]
[1737603232337,3.03365752,3241.3,3241.2,0.61746]
[1737603233551,0.61747,3241.2,3241.1,0.61747]
[1737603234055,2.41620752,3241.3,3241.1,0.61747]
[1737603234352,3.03365752,3241.3,3241.1,0.61747]
[1737603234553,0.61746,3241.2,3241.1,0.61747]
[1737603235254,0.61746,3241.2,3240.9,0.5091]
[1737603235456,0.61746,3241.2,3241.0,0.61749]
[1737603236458,0.61747,3241.2,3241.0,0.61749]
[1737603237258,0.61747,3241.2,3240.9,0.5091]
[1737603237456,0.61747,3241.2,3241.1,0.61748]
[1737603238267,3.03365752,3241.3,3241.2,0.61746]
[1737603238561,3.03365752,3241.3,3240.9,0.5091]
[1737603238768,3.03365752,3241.3,3241.1,0.61747]
[1737603238969,3.03365752,3241.3,3240.9,0.5091]
[1737603239270,1.01412648,3241.4,3240.9,0.5091]
[1737603239469,0.53322648,3241.4,3241.3,0.61744]
[1737603239670,0.00462648,3241.4,3241.3,0.61744]
[1737603240167,0.62204648,3241.4,3241.3,0.61744]
[1737603242671,0.00462648,3241.4,3241.3,0.61744]
[1737603245972,0.00462648,3241.4,3241.3,41.41744]
[1737603249677,0.00462648,3241.4,3241.3,0.61744]
[1737603250076,0.00462648,3241.4,3241.3,41.41744]
[1737603255075,6.24128752,3242.2,3242.1,0.61729]
[1737603255280,0.6173,3242.1,3242.0,0.6173]
[1737603256082,0.61732,3242.0,3241.9,0.61732]
[1737603256477,6.11060752,3242.2,3241.6,0.4998]
[1737603256684,0.61735,3242.1,3242.0,0.61735]
[1737603258186,6.11060752,3242.2,3241.6,0.4998]
[1737603258487,0.61733,3242.1,3242.0,0.61734]
[1737603258686,2.90280752,3242.2,3241.7,0.5277]
[1737603258888,0.4866,3242.2,3241.9,3.2078]
[1737603259191,0.4866,3242.2,3242.1,0.61733]
[1737603261081,0.4866,3242.2,3242.1,41.41733]
[1737603261994,0.4866,3242.2,3242.1,0.61733]
[1737603266686,0.4866,3242.2,3242.1,41.41733]
[1737603267693,0.4835,3242.4,3242.3,0.61729]
[1737603268393,1.1378,3242.8,3242.1,41.41733]
[1737603268591,2.41620752,3242.2,3241.9,3.2078]
[1737603268798,2.41620752,3242.2,3240.3,10.23065984]
[1737603268799,0.61737,3241.9,3241.5,3.2078]
[1737603269098,0.61737,3241.9,3240.8,1.54393]
[1737603269099,0.61746,3241.5,3241.2,0.61749]
[1737603269288,2.41620752,3241.4,3240.9,40.8]
[1737603269688,3.03367752,3241.4,3241.2,0.61748]
[1737603270097,2.41620752,3241.4,3240.9,40.8]
[1737603270301,0.6175,3241.2,3241.0,0.61753]
[1737603271297,0.61748,3241.3,3241.1,0.61751]
[1737603271698,0.61751,3241.2,3241.0,0.61753]
[1737603271899,0.61751,3241.2,3241.0,0.61754]
[1737603272300,0.9713,3241.3,3240.9,40.8]
[1737603272498,1.58879,3241.3,3241.1,0.61751]
[1737603272900,0.9713,3241.3,3240.9,40.8]
[1737603273101,0.9713,3241.3,3241.1,0.61752]
[1737603273399,1.58879,3241.3,3241.2,0.6175]
[1737603273600,0.9713,3241.3,3241.2,0.6175]
[1737603273902,0.61747,3241.4,3241.2,0.6175]
[1737603274095,0.61747,3241.4,3241.3,0.4977]
[1737603274707,0.61747,3241.4,3241.3,1.11518]
[1737603275003,0.61747,3241.4,3241.3,0.4977]
[1737603275502,0.61747,3241.4,3241.3,1.11518]
[1737603275704,0.61747,3241.4,3241.3,0.4977]
[1737603279002,0.61747,3241.4,3241.3,1.11518]
[1737603279806,0.61747,3241.4,3241.3,0.4977]
[1737603280003,3.03367752,3241.4,3241.3,0.4977]
[1737603280905,3.03366752,3241.4,3241.3,1.11518]
[1737603281205,4.2253,3241.6,3241.3,1.11518]
[1737603281408,0.61746,3241.4,3241.3,1.11518]
[1737603281806,0.61746,3241.4,3241.3,0.4977]
[1737603284307,0.61746,3241.4,3241.3,1.11518]
[1737603284509,0.61746,3241.4,3241.3,0.4977]
[1737603285613,0.61746,3241.4,3241.3,1.11518]
[1737603286114,0.61746,3241.4,3241.3,0.4977]
[1737603286617,0.61746,3241.4,3241.3,1.11518]
[1737603287413,0.61746,3241.4,3241.3,0.4977]
[1737603288421,0.61746,3241.4,3241.3,1.11518]
[1737603288621,0.61746,3241.4,3241.3,0.4977]
[1737603291122,0.61746,3241.4,3241.3,1.11518]
[1737603291323,0.61746,3241.4,3241.3,0.4977]
[1737603296525,0.61746,3241.4,3241.3,1.11518]
[1737603297126,0.61746,3241.4,3241.3,0.4977]
[1737603298023,0.61746,3241.4,3241.3,1.11518]
[1737603300521,0.61746,3241.4,3241.3,0.4977]
[1737603302726,0.61746,3241.4,3241.3,1.11518]
[1737603303526,0.61745,3241.5,3241.4,0.61744]
[1737603303728,4.31704,3241.6,3241.5,0.61744]
[1737603305531,0.61745,3241.5,3241.4,0.61745]
[1737603306727,0.61746,3241.4,3241.3,0.4977]
[1737603307031,0.61749,3241.1,3241.0,0.5021]
[1737603307233,0.61749,3241.1,3241.0,1.11961]
[1737603307428,0.61749,3241.1,3241.0,1.62621]
[1737603308134,0.61749,3241.1,3241.0,1.0087]
[1737603308526,0.61749,3241.1,3241.0,1.6262]
[1737603309538,0.486,3241.3,3241.0,1.0087]
[1737603309732,0.61748,3241.2,3241.1,0.61747]
[1737603309932,0.61747,3241.2,3241.1,0.61748]
[1737603310734,0.486,3241.3,3241.0,1.0087]
[1737603310929,0.61748,3241.1,3241.0,1.62619]
[1737603311237,0.61747,3241.2,3241.1,0.61748]
[1737603311737,0.61748,3241.1,3241.0,0.5066]
[1737603312033,0.61748,3241.1,3240.7,0.48752648]
[1737603312034,0.61754,3240.8,3240.7,0.48752648]
[1737603312235,0.61754,3240.8,3240.7,1.59218648]
[1737603312436,0.4908,3241.1,3240.7,0.97462648]
[1737603312638,0.61749,3241.1,3241.0,0.61749]
[1737603312827,3.2078,3241.2,3240.7,0.97462648]
[1737603313030,3.82526,3241.2,3241.1,0.61748]
[1737603314537,0.61749,3241.1,3241.0,0.61749]
[1737603315740,3.2078,3241.2,3240.8,40.8]
[1737603315940,0.61751,3241.0,3240.9,0.61751]
[1737603316236,2.41620752,3241.1,3240.8,40.8]
[1737603316439,1.62712,3240.9,3240.8,40.8]
[1737603320642,0.61752,3240.9,3240.8,40.8]
[1737603320845,0.61752,3240.9,3240.8,41.41754]
[1737603321843,0.61752,3240.9,3240.8,40.8]
[1737603322047,0.61752,3240.9,3240.8,41.41754]
[1737603322447,3.2078,3241.2,3240.8,40.8]
[1737603322750,3.82527,3241.2,3241.1,0.61748]
[1737603323645,0.61749,3241.1,3241.0,0.61749]
[1737603323845,3.2078,3241.2,3240.8,40.8]
[1737603324351,0.61751,3241.0,3240.9,0.61751]
[1737603326444,3.03369752,3241.1,3241.0,0.6175]
[1737603326650,0.61752,3241.0,3240.9,0.61751]
[1737603328553,0.61752,3240.9,3240.8,41.41753]
[1737603328850,0.61752,3240.9,3240.8,0.61753]
[1737603333351,0.61754,3240.8,3240.7,1.10927648]
[1737603333758,0.61754,3240.8,3240.7,41.90927648]
[1737603334359,0.4943,3241.0,3240.7,41.29172648]
[1737603334569,0.61754,3240.9,3240.8,0.61753]
[1737603335758,1.76153012,3240.9,3240.8,0.61753]
[1737603336554,0.4943,3241.0,3240.7,41.29172648]
[1737603336555,1.76148012,3241.1,3241.0,0.6175]
[1737603336859,0.61752,3241.0,3240.9,0.6175]
[1737603337458,0.61742,3241.5,3241.4,0.61742]
[1737603337760,3.2078,3241.6,3241.5,0.61741]
[1737603338759,1.14399012,3241.9,3241.4,1.14399012]
[1737603338963,1.14399012,3241.9,3241.8,0.61734]
[1737603339863,0.61731,3242.0,3241.8,0.61734]
[1737603340162,0.61731,3242.0,3241.9,0.4823]
[1737603340364,0.61731,3242.0,3241.9,0.9679]
[1737603340670,3.03239388,3242.1,3242.0,0.61731]
[1737603340963,2.41509388,3242.1,3242.0,0.61731]
[1737603341566,15.64900756,3242.4,3242.3,0.61725]
[1737603341567,3.2078,3242.4,3242.3,0.61725]
[1737603341860,11.95740756,3242.6,3241.9,2.51119]
[1737603342164,11.95740756,3242.6,3242.5,0.61722]
[1737603343266,11.95740756,3242.6,3242.5,41.41722]
[1737603345161,0.61715,3242.9,3242.5,40.8]
[1737603345462,0.61715,3242.9,3242.7,0.61718]
[1737603345965,5.62289388,3243.0,3242.6,1.01]
[1737603346264,0.61715,3242.9,3242.7,0.61717]
[1737603346466,5.62289388,3243.0,3242.7,0.61717]
[1737603346665,1.11204,3242.9,3242.7,0.61717]
[1737603351663,0.4949,3242.9,3242.6,1.01]
[1737603351965,5.62289388,3243.0,3242.9,0.61714]
[1737603352876,2.41509388,3243.0,3242.9,0.61714]
[1737603353466,0.488,3243.2,3243.1,0.6171]
[1737603354167,2.41509388,3243.3,3242.6,1.01]
[1737603354465,3.2078,3243.4,3243.3,0.61706]
[1737603355170,2.41509388,3243.6,3243.5,0.61703]
[1737603356969,3.2078,3243.8,3243.7,0.61699]
[1737603357170,6.13309388,3244.2,3243.3,0.5282]
[1737603357363,5.62289388,3244.2,3244.1,0.61691]
[1737603357674,0.61692,3244.1,3244.0,0.61693]
[1737603358172,5.62289388,3244.2,3243.7,0.5072]
[1737603358474,5.62289388,3244.2,3244.1,0.61691]
[1737603358971,5.62289388,3244.2,3243.8,0.4783]
[1737603359269,3.03194388,3244.5,3243.9,0.487]
[1737603359469,2.41509388,3244.5,3244.3,0.61687]
[1737603359771,3.03193388,3244.5,3244.3,0.61686]
[1737603359974,3.03193388,3244.5,3244.4,0.61685]
[1737603360174,2.41509388,3244.5,3244.4,0.61685]
[1737603360370,5.62289388,3244.8,3244.1,3.21242648]
[1737603360672,6.23968388,3244.8,3244.6,0.61681]
[1737603360869,5.62289388,3244.8,3244.7,1.1038]
[1737603361273,6.23967388,3244.8,3244.7,1.1038]
[1737603361479,2.41509388,3244.8,3244.7,1.1038]
[1737603361669,3.03187388,3244.8,3244.7,0.487]
[1737603362066,6.23967388,3244.8,3244.7,0.487]
[1737603364277,5.62289388,3244.8,3244.1,3.21242648]
[1737603364480,2.41509388,3244.2,3244.1,0.00462648]
[1737603364680,0.61688,3244.3,3244.1,0.00462648]
[1737603364981,0.61686,3244.4,3244.2,0.61689]
[1737603365169,0.61686,3244.4,3244.3,0.4852]
[1737603365770,2.41509388,3244.5,3244.1,0.00462648]
[1737603366086,3.03198388,3244.2,3244.1,0.00462648]
[1737603370682,7.41509388,3244.2,3243.0,0.978]
[1737603370882,0.6171,3243.1,3243.0,0.4956]
[1737603371178,0.6171,3243.1,3243.0,41.2956]
[1737603373887,2.41509388,3243.3,3243.0,41.2956]